Cogmind - Beta 16 @@@ ROGUE MODE // 2026.01.06 @ 23:22:42 Player: Legato Result: Self-destructed Performance ------------- Evolutions (1) 500 Regions Visited (3) 600 Robots Destroyed (50) 250 Value Destroyed (897) 897 Prototype IDs (4) 80 Alien Tech Used (0) 0 Bonus (0) 0 TOTAL SCORE: 2327 Bonus ------- None Cogmind --------- Core Integrity 171/400 Matter 76/300 Energy 100/100 System Corruption 1% Temperature Cool (0) Movement Core (200) Ox3 Location -9/Materials Parts ------- > --- POWER (1) -------- (None) > --- PROPULSION (3) --- (None) > --- UTILITY (3) ------ Medium Storage Unit > --- WEAPON (2) ------- (None) > --- INVENTORY (10) --- Light Ion Engine Small Matter Pod (0) Structural Scanner Structural Scanner ECM Suite Recalibrator Mini Grenade Launcher Peak State ------------ > --- POWER ------------ Ion Engine > --- PROPULSION ------- Light Treads Light Treads Light Treads > --- UTILITY ---------- Medium Storage Unit Sensor Array Power Shielding > --- WEAPON ----------- Autogun Mini Grenade Launcher > --- INVENTORY -------- Ion Engine Light Ion Engine Light Treads Structural Scanner Structural Scanner ECM Suite Recalibrator Light Assault Rifle Grenade Launcher [Rating: 12] Favorites ----------- Power Ion Engine Engine Ion Engine Propulsion Light Treads Treads Light Treads Utility Small Storage Unit Device Sensor Array Storage Small Storage Unit Protection Power Shielding Weapon Autogun Energy Gun Heavy EM Pulse Gun Ballistic Gun Autogun Launcher Mini Grenade Launcher Special Weapon Mining Laser Build | -11 -10 -10 -9 ------- Run | Yrd Mat Min Mat Slots Evolved 2 | . . . 2 Power . | . . . . Propulsion 1 | . . . 1 Utility 1 | . . . 1 Weapon . | . . . . Parts Attached 26 | 7 14 . 5 Power 4 | 1 2 . 1 Engine 4 | 1 2 . 1 Core . | . . . . Reactor . | . . . . Propulsion 4 | 2 1 . 1 Treads 4 | 2 1 . 1 Leg . | . . . . Wheel . | . . . . Hover . | . . . . Flight . | . . . . Utility 9 | 2 5 . 2 Device 5 | 1 4 . . Storage 2 | 1 1 . . Processor . | . . . . Hackware . | . . . . Protection 2 | . . . 2 Artifact . | . . . . Weapon 9 | 2 6 . 1 Energy Gun 2 | 1 1 . . Energy Cannon . | . . . . Ballistic Gun 3 | 1 1 . 1 Ballistic Cannon . | . . . . Launcher 3 | . 3 . . Special Weapon 1 | . 1 . . Impact Weapon . | . . . . Slashing Weapon . | . . . . Piercing Weapon . | . . . . Special Melee Weapon . | . . . . Unidentified Prototypes . | . . . . Parts Lost 13 | . 2 . 11 Power 2 | . . . 2 Propulsion 4 | . . . 4 Utility 3 | . 1 . 2 Weapon 4 | . 1 . 3 Highest Loss Streak 11 | . 1 . 11 To Critical Strikes . | . . . . Average Backups 7 | 1 7 10 8 Power 2 | . 2 2 1 Propulsion 1 | . 1 2 . Utility 2 | . 2 4 4 Weapon 1 | . 1 2 1 Tool/Special . | . . . . Unused Backups 7 | . 3 . 4 Power 1 | . 1 . . Propulsion 1 | . 1 . . Utility 5 | . 1 . 4 Weapon . | . . . . Tool/Special . | . . . . Average Slot Usage (%) 96 | . 98 100 89 Engine 13 | . 14 14 10 Treads 27 | . 27 28 29 Device 12 | . 13 14 9 Storage 13 | . 14 14 11 Protection 1 | . . . 8 Energy Gun 6 | . 8 . . Ballistic Gun 11 | . 12 14 10 Launcher 6 | . 4 14 10 Special Weapon 1 | . 1 . . Peak Build Rating 12 | 7 10 9 12 Average Rating 8 | 5 8 9 10 On Entrance 6 | . 7 9 9 Avg Prop Armor Cover (%) . | . . . . Naked Turns . | . . . . Heaviest Build 23 | 14 22 22 23 Greatest Support 60 | 40 40 40 60 Greatest Overweight (x) 1 | 1 . . . Average Overweight (x) . | . . . . Largest Inventory Capacity 10 | 8 10 10 10 Average Capacity 8 | 7 8 10 10 Most Carried 10 | 2 10 10 10 Average Carried 7 | 1 7 10 8 Final Capacity 10 | 8 10 10 10 Final Carried 10 | 2 10 10 7 Class Distribution -------------------- 100% | Mutant Dominant Class ---------------- Mutant | -10/Materials Mutant | -10/Mines Mutant | -9/Materials Resources | -11 -10 -10 -9 ----------- Run | Yrd Mat Min Mat Matter Collected 915 | 309 293 57 256 Remotely . | . . . . Salvage Created 884 | 164 447 . 273 Parts 74 | 13 36 . 25 Haulers Intercepted 1 | . 1 . . Recyclers Shooed 4 | . 2 . 2 Parts Field Recycled . | . . . . Retrieved Matter . | . . . . Parts Self-Destructed . | . . . . Prevented . | . . . . Parts Restored . | . . . . Kills | -11 -10 -10 -9 ------- Run | Yrd Mat Min Mat Combat Hostiles Destroyed 27 | . 16 . 11 Guns 5 | . 5 . . AOE 22 | . 11 . 11 Classes Destroyed 11 | 3 5 . 3 Worker 6 | 2 2 . 2 Builder 1 | . 1 . . Tunneler 4 | 4 . . . Hauler 1 | . 1 . . Recycler 6 | 1 3 . 2 Mechanic 1 | . . . 1 Operator 2 | . 2 . . Watcher 2 | . . . 2 Swarmer 13 | . 9 . 4 Grunt 10 | . 7 . 3 Sentry 4 | . . . 4 Best Kill Streak 13 | 4 7 . 13 Combat Bots Only 4 | . 3 . 4 Max Kills in Single Turn 6 | 1 6 . 2 Gunslinging . | . . . . Exploded 3 | . 3 . 2 Melee . | . . . . Uniques/NPCs Destroyed . | . . . . Combat | -11 -10 -10 -9 -------- Run | Yrd Mat Min Mat Hostile Shots Fired 205 | . 46 . 159 Missed 61 | . 13 . 48 Hits 144 | . 33 . 111 Projectile 144 | . 33 . 111 Critical Strikes 5 | . . . 5 Actively Blocked 1 | . . . 1 Damage Taken 1873 | . 593 . 1280 Core 328 | . 99 . 229 Absorbed by Shields . | . . . . Redirected to Shielding 4 | . . . 4 Regen/Repaired (Parts) 226 | . 226 . . Core Remaining (%) 80 | 100 . 60 . Volleys Fired 128 | 39 55 1 33 Largest 2 | 1 2 1 2 Hottest 120 | 20 120 23 60 Shots Fired 154 | 39 80 1 34 Gun 99 | 39 59 1 . Cannon . | . . . . Launcher 53 | . 19 . 34 Special 2 | . 2 . . Kinetic 78 | 39 38 1 . Thermal 2 | . 2 . . Explosive 53 | . 19 . 34 Electromagnetic 21 | . 21 . . Robot Hit Streak 10 | 5 5 2 10 Robot Miss Streak 5 | 3 5 . 1 Penetration Max . | . . . . Secondary Targets 1 | . 1 . . Max Gunslinging Chain 1 | . 1 . . Shots Hit Robots 86 | 24 37 1 24 Core Hits 82 | 14 35 . 33 Critical Kills 1 | . 1 . . Critical Parts Destroyed 1 | 1 . . . Critical Strikes 2 | 1 1 . . Destroy 2 | 1 1 . . Melee Attacks . | . . . . Impact . | . . . . Slashing . | . . . . Piercing . | . . . . Sneak Attacks . | . . . . Combat Hostiles . | . . . . Follow-up Attacks . | . . . . Damage Inflicted 3523 | 193 1872 13 1445 Guns 541 | 193 335 13 . Cannons . | . . . . Explosions 2928 | . 1513 . 1415 Melee . | . . . . Ramming 30 | . . . 30 Kinetic 424 | 193 218 13 . Thermal 691 | . 691 . . Explosive 2261 | . 846 . 1415 Electromagnetic 117 | . 117 . . Impact . | . . . . Slashing . | . . . . Piercing . | . . . . Highest Corruption 1 | . . . 1 Average Corruption 1 | . . . 1 Corruption Purged . | . . . . Corruption Blocked . | . . . . Overload Shots . | . . . . Overflow Damage 199 | . 128 . 71 Projectiles . | . . . . Explosions 199 | . 128 . 71 Melee . | . . . . Knockbacks . | . . . . Impact . | . . . . Kinetic . | . . . . Secondary . | . . . . Self-Inflicted Damage 420 | . 233 . 187 Shots 15 | . 6 . 9 Rammed 17 | . . . 17 Targets Rammed 17 | . . . 17 Kicked . | . . . . Crushed . | . . . . Highest Temperature 112 | . 112 3 19 Average Temperature 27 | . 30 3 4 Received Heat Transfer 351 | . 120 . 231 Siege Activations . | . . . . Martial Activations . | . . . . Shielding Activations . | . . . . Robots Disrupted . | . . . . Combat Hostiles . | . . . . Robots Corrupted . | . . . . Combat Hostiles . | . . . . Parts Fried . | . . . . Impact Corruptions . | . . . . Robots Melted . | . . . . Combat Hostiles . | . . . . Parts Melted . | . . . . Heat Transferred 550 | . 550 . . Parts Sabotaged . | . . . . Parts Stolen . | . . . . Parts Stripped . | . . . . Power Chain Reactions 1 | . 1 . . Alert | -11 -10 -10 -9 ------- Run | Yrd Mat Min Mat Maximum Alert Level 1 | . 1 . 1 Low Security (%) 59 | 100 50 100 63 Level 1 40 | . 49 . 36 Level 2 . | . . . . Level 3 . | . . . . Level 4 . | . . . . Level 5 . | . . . . High Security . | . . . . Max Security . | . . . . Peak Influence 373 | 10 349 117 373 Initial 117 | . . 117 41 Average 133 | 1 154 115 140 Influence Increases 1263 | 35 699 . 529 Destroy 0b10 Robot/C 540 | . 320 . 220 Destroy 0b10 Robot/NC 115 | 35 45 . 35 Destroy Leader 136 | . 72 . 64 Successful Hack 40 | . 40 . . Disable Machine 120 | . 60 . 60 Destroy Structure 282 | . 132 . 150 Lose Combat Pursuer 30 | . 30 . . Influence Decreases 986 | 35 398 194 359 Entered New Map 250 | . . 184 66 Time Decay 606 | 35 378 10 183 Lost Part 130 | . 20 . 110 Squads Dispatched 4 | . 4 . . Investigation 2 | . 2 . . Extermination . | . . . . Reinforcement 2 | . 2 . . Assault . | . . . . Garrison . | . . . . Intercept . | . . . . Searches Triggered . | . . . . Construction Impeded . | . . . . Haulers Reinforced . | . . . . Active Scanning Responses . | . . . . Cargo Convoy Interrupts . | . . . . Stealth | -11 -10 -10 -9 --------- Run | Yrd Mat Min Mat Distress Signals 4 | . 3 . 1 Communications Jammed . | . . . . Distress Signals . | . . . . Times Spotted 46 | . 27 . 19 Peak Tracking Total 5 | . 4 . 5 Tactical Retreats 1 | . 1 . . Traps | -11 -10 -10 -9 ------- Run | Yrd Mat Min Mat Traps Triggered 1 | . 1 . . Indirectly . | . . . . Trap Hack Attempts . | . . . . Triggered . | . . . . Disarmed 1 | . 1 . . Reprogrammed . | . . . . Reused . | . . . . Traps Extracted . | . . . . Installed . | . . . . Triggered . | . . . . Machines | -11 -10 -10 -9 ---------- Run | Yrd Mat Min Mat Machines Disabled 9 | . 5 . 4 Max in Single Turn 3 | . 3 . 1 Machines Repaired . | . . . . Machines Dismantled . | . . . . Machines Sabotaged . | . . . . Overloaded Fab Kills . | . . . . Hacking | -11 -10 -10 -9 --------- Run | Yrd Mat Min Mat Machines Accessed 9 | . 9 . . Terminals 7 | . 7 . . Fabricators . | . . . . Repair Stations 1 | . 1 . . Recycling Units 1 | . 1 . . Scanalyzers . | . . . . Garrison Access . | . . . . Total Hacks 34 | . 34 . . Successful 21 | . 21 . . Failed 13 | . 13 . . Catastrophic 2 | . 2 . . Database Lockouts . | . . . . Manual 14 | . 14 . . Terminals 24 | . 24 . . Fabricators . | . . . . Repair Stations 6 | . 6 . . Recycling Units 4 | . 4 . . Scanalyzers . | . . . . Garrison Access . | . . . . Terminal Hacks 11 | . 11 . . Robot Analysis 4 | . 4 . . Prototype ID Bank 2 | . 2 . . Locate Traps 1 | . 1 . . Disarm Traps 1 | . 1 . . Hauler Manifests 1 | . 1 . . Zone Layout 2 | . 2 . . Fabricator Hacks . | . . . . Repair Station Hacks 6 | . 6 . . Scan Component 3 | . 3 . . Repair 3 | . 3 . . Recycling Unit Hacks 2 | . 2 . . Report Inventory 1 | . 1 . . Retrieve Components 1 | . 1 . . Scanalyzer . | . . . . Garrison Access Hacks . | . . . . Unauthorized Hacks 2 | . 2 . . Terminals 2 | . 2 . . Botnet 2 | . 2 . . Fabricators . | . . . . Repair Stations . | . . . . Recycling Units . | . . . . Scanalyzers . | . . . . Garrison Access . | . . . . Data Cores Recovered . | . . . . Used . | . . . . Hacking Detections 9 | . 9 . . Full Trace Events 1 | . 1 . . Feedback Events . | . . . . Feedback Blocked . | . . . . Robot Schematics Acquired . | . . . . Robots Built . | . . . . Authchips . | . . . . Time . | . . . . Total Robot Build Rating . | . . . . Part Schematics Acquired . | . . . . Parts Built . | . . . . Authchips . | . . . . Time . | . . . . Total Part Build Rating . | . . . . Part Studies Acquired . | . . . . Parts Repaired 3 | . 3 . . Time 78 | . 78 . . Parts Recycled . | . . . . Recycled Matter . | . . . . Retrieved Matter . | . . . . Retrieved Components 6 | . 6 . . Parts Scanalyzed . | . . . . Part Schematics Acquired . | . . . . Parts Damaged . | . . . . Bothacking | -11 -10 -10 -9 ------------ Run | Yrd Mat Min Mat Used RIF Installer . | . . . . Robots Hacked . | . . . . Non-combat . | . . . . Combat . | . . . . Robot Hacks Applied . | . . . . Relay Couplers Released . | . . . . Fabnet Peak Effective % . | . . . . Robots Rewired . | . . . . Allies Hacked . | . . . . Hacks Repelled . | . . . . Allies | -11 -10 -10 -9 -------- Run | Yrd Mat Min Mat Total Allies . | . . . . Largest Group . | . . . . Highest-Rated Group . | . . . . Highest-Rated Ally . | . . . . Total Orders . | . . . . Ally Attacks . | . . . . Total Damage . | . . . . Kills . | . . . . Allies Corrupted . | . . . . Allies Melted . | . . . . Intel | -11 -10 -10 -9 ------- Run | Yrd Mat Min Mat Active Infowar (turns) 1814 | 32 1399 23 360 Sensors 938 | . 555 23 360 Terrain 3 | . 3 . . Structural 2 | . 2 . . Seismic 871 | 32 839 . . Robot Analysis Total 4 | . 4 . . Derelict Logs Recovered . | . . . . Drone Launches . | . . . . Drone Recoveries . | . . . . Exploration | -11 -10 -10 -9 ------------- Run | Yrd Mat Min Mat Turns Passed 2140 | 244 1446 23 427 Spaces Moved 1051 | 103 738 14 196 Core 3 | 3 . . . Treads 1048 | 100 738 14 196 Legs . | . . . . Wheels . | . . . . Hover . | . . . . Flight . | . . . . Fastest Speed 50 | 50 160 160 160 Average Speed 159 | 157 160 160 160 Slowest Speed 160 | 160 160 160 160 Overloaded Moves . | . . . . Propulsion Burnouts . | . . . . Robots Hopped . | . . . . Potential Cave-ins . | . . . . Cave-ins Triggered . | . . . . Exploration Rate (%) 33 | 6 98 9 20 Regions Visited 3 Branch Regions 1 Pre-discovered Areas 1 | . . 1 . Known Exits Taken . | . . . . Unknown Exits Taken 3 | 1 1 1 . Scrap Searched 1 | . . 1 . Spaces Dug 29 | . 29 . . Terrain Destroyed 339 | . 144 . 195 Melee . | . . . . Projectile 1 | . 1 . . AOE 338 | . 143 . 195 Terrain Rammed . | . . . . Walls Destroyed . | . . . . Machines Disabled . | . . . . Actions | -11 -10 -10 -9 --------- Run | Yrd Mat Min Mat Total 1339 | 150 919 14 256 Wait 79 | . 79 . . Move 1048 | 102 737 13 196 Hop . | . . . . Pick Up 16 | 2 12 . 2 Fast Attach 13 | 7 6 . . Attach 6 | . 1 . 5 Detach . | . . . . Swap 23 | . 20 . 3 Drop 9 | . 9 . . Fire 128 | 39 55 1 33 Melee . | . . . . Ram 7 | . . . 7 Kick . | . . . . Crush 10 | . . . 10 Escape Stasis . | . . . . Rewire . | . . . . Trap . | . . . . Miscellaneous . | . . . . Route ------- -11/Scrapyard -10/Materials (discovered 4 exits: [*Mat x3] / [*Min]) -10/Mines -9/Materials History --------- Turn | Location | Event 2 | -11/Scrapyard | Met Revision 17 17 | -11/Scrapyard | Discovered new exit (range 15) 245 | -11/Scrapyard | Entered Materials 308 | -10/Materials | Build established: Mutant 523 | -10/Materials | Discovered new exit (range 8) 578 | -10/Materials | Discovered new exit (range 14) 927 | -10/Materials | Repaired Lgt. Treads 955 | -10/Materials | Repaired Lgt. Treads 982 | -10/Materials | Repaired Seismic Detector 1034 | -10/Materials | Discovered new exit (range 11) 1365 | -10/Materials | Discovered new exit (range 12) 1691 | -10/Materials | Entered Mines 1692 | -10/Mines | Learned location of Storage (-8) 1692 | -10/Mines | Assembled infested the area 1697 | -10/Mines | Assisted by a Guerilla fighting off Assembled 1699 | -10/Mines | Discovered new exit (range 7) 1714 | -10/Mines | Entered Materials 1714 | -9/Materials | Evolved 2 slots: Propulsion x1, Utility x1 2131 | -9/Materials | Core integrity fell below 50% 2141 | -9/Materials | Self-destructed Last Messages --------------- 02118_ Slammed into S-10 Pest. 02118_ U-05 Engineer lays Concrete. 02119_ Slammed into S-10 Pest. 02119_ S-10 Pest destroyed. 02121_ Slammed into S-10 Pest. 02121_ Lgt. Treads destroyed. 02122_ The unstable cave ceiling collapses. 02123_ Slammed into S-10 Pest. 02129_ Destabilizing: System corrupted (+1). 02132_ Slammed into S-10 Pest. 02132_ Lgt. Assault Rifle destroyed. 02134_ The unstable cave ceiling collapses. 02135_ Slammed into S-10 Pest. 02135_ K-01 Serf collects debris. 02136_ Ion Engine destroyed. 02137_ U-05 Engineer builds a Wall. 02137_ Slammed into S-10 Pest. 02138_ U-05 Engineer lays Concrete. 02139_ Slammed into S-10 Pest. 02140_ U-05 Engineer lays Concrete. Map ----- +----------------------------------------------------+ | ?????????????????????????????????????????????????? | | ?????????????????????????????????????????????????? | | ?????????????????????????????????????????????????? | | ?????????????????????????????????????????????????? | | ?????????????????????????????????????????????????? | | ?????????????????????????????????????????????????? | | ?????????????????????????????????????????????????? | | ?????????????????????????????????????????????????? | | ?????????????????????????????????????????????????? | | ?????????????????????????????????????????????????? | | ?????????????????????????????????????????????????? | | ?????????????????????????????????????????????????? | | ?????????????????????????????????????????????????? | | ?????????????????????????????????????????????????? | | ?????????????????????????????????????????????????? | | ?????????????????????????????? ??????????????????? | | ???????????????????????#######+#######???????????? | | ???????????????????????# #???????????? | | ????????????????#??????# #???????????? | | ????????????????# ?????# #???????????? | | ????????????????# ?????# #???????????? | | ????????????????# ????# #???????????? | | ????????????????# ??## #???????????? | | ????????????????# ??#########+###########??????? | | ????????????????# ## s ?? | | ????????????????# # @ r##### ##????????? | | ???????????????????## u a sk![# ## #?????????? | | ?????????????????### a######## ### #?????????? | | ????????????????## # #### # # #?????????? | | ????????????????# ## # ## * # #?????????? | | ???????????????# ####k ## # #?????????? | | ?????????? # # r# # #?????????? | | ?????????# % # ! # #?????????? | | ????????? % / ## #?????????? | | ?????????? = u ## #?????????? | | ?????????? % + # # #?????????? | | ??????????# # # k # ## #?????????? | | ??????????? # # # ## #?????????? | | ??????????? ?# # ### ##### ###???????? | | ??????????????# # #?# # # #???????? | | ?????????????? # #?### # # #???????? | | ??????????????## # #???#### #/########### | | ????????????????# ## #??????### # | | ???????????????????##? ????????### """ | | ????????????????????? ??????????## """ | | ????????????????????? ?????????????# !!! """ | | ????????????????????? ?????????????# !! ! | | ??????????????????????? ????????????########+### | | ????????????????????????????????????# # * * | | ????????????????????????????????????# # | +----------------------------------------------------+ Best States ------------- Heat Dissipation 28 Energy Generation 10 Energy Capacity 250 Matter Stores 300 Matter Capacity 300 Sight Range 16 Robot Scan Range 14 Terrain Scan Range 14 Terrain Scan Density 10 Armor Coverage 150 Power Shielding 33 Evasion (%) 40 Recoil Reduction 3 Item Schematics ----------------- None Robot Schematics ------------------ None Fabricated ------------ Nothing Repaired ---------- Lgt. Treads | 13% | -10/Materials Lgt. Treads | 32% | -10/Materials Seismic Detector | 50% | -10/Materials Studied --------- None Alien Tech Used ----------------- None Achievements -------------- None Challenges ------------ None Game ------ Seed GodShiftDirector Manual? 0 Play Time 00:23:57 Cumulative 37.2 hours Start 2026.01.06 @ 22:59:07 End 2026.01.06 @ 23:22:42 Sessions 1 Manual Loads 0 Difficulty Rogue Special Mode None Game No. 48 Rogue 48 Adventurer 0 Explorer 0 Win Type - Total 0 Types 0/0/0/0/0/0/0/0/0/0 Lore% 33 Gallery% 34 Achievement% 24 Wizard Run 0 Options --------- Layout 0 ASCII 0 Keyboard 0 Movement Mouse Keybinds 1 Fullscreen 1 Font 18/X11 Map View 76x50 Zoom Use 0% Tactical HUD 1 Map Filters NONE Filters NONE Steam 1 RUN: cdb40d44-e51c-4d5b-8195-1a548932fc22